[Event "American Cup Open Elimination 2024"]
[Site "Saint Louis"]
[Date "2024.03.12"]
[Round "1.3"]
[White "Oparin, Grigoriy"]
[Black "Sevian, Samuel"]
[Result "0-1"]
[ECO "A20"]
[WhiteElo "2671"]
[BlackElo "2697"]
[Annotator "TA"]
[PlyCount "66"]
[EventDate "2024.03.11"]
[EventType "k.o."]
[EventCountry "USA"]
[SourceTitle "playchess.com"]
[Source "ChessBase"]
[SourceQuality "1"]
[TimeControl "900+10"]

{[%evp 9,66,19,12,2,-2,0,3,0,9,16,10,0,0,-25,29,34,12,43,51,0,0,-6,0,-21,14,-10,16,-13,15,-8,-8,-23,-28,-94,-84,-135,-139,-265,-261,-272,-256,-285,-272,-280,-282,-400,-422,-670,-653,-693,-679,-679,-637,-1022,-1004,-1023,-1010,-1008,-1008]} 1. c4 {[%emt 0:00:01]} e5 {[%emt 0:00:01][%cal Be7e5,Be5e4][%mdl 32]} 2. g3 {[%emt 0:00:02]} c6 {[%emt 0:00:13]} 3. Nf3 {[%emt 0:00:05]} e4 {[%emt 0:00:09]} 4. Nd4 {[%emt 0:00:02]} d5 {[%emt 0:00:00]} 5. cxd5 {[%emt 0:00:16]} Qxd5 {[%emt 0:00:02]} 6. Nc2 {[%emt 0:00:02]} Nf6 {[%emt 0:00:01]} 7. Nc3 {[%emt 0:00:03]} Qe5 {[%emt 0:00:01]} 8. Bg2 {[%emt 0:00:04] Die Stellung ist ausgeglichen.} Na6 {[%emt 0:00:02]} 9. O-O {[%emt 0:00:21]} Be7 {[%emt 0:00:28]} 10. a3 {[%emt 0:00:24]} O-O {[%emt 0:00:24]} 11. b4 {[%emt 0:00:05]} Rd8 {[%emt 0:00:38]} (11... Bf5 $142) 12. Bb2 $11 {[%emt 0:00:34]} Bf5 {[%emt 0:02:51]} 13. Ne3 {[%emt 0:01:06][%cal Oc3d5] Und Ncd5! würde nun gewinnen.} Bg6 {[%emt 0:00:03]} 14. Qb3 {[%emt 0:04:12]} ({Günstiger ist} 14. Ncd5 $1 $14 Qxb2 15. Nxe7+ Kf8 16. Nc4) 14... Qh5 {[%emt 0:00:08][%cal Oa6c7]} 15. Rad1 {[%emt 0:00:55]} Nc7 {[%emt 0:00:19]} 16. Qc4 {[%emt 0:00:35][%cal Rc3e4]} Qe5 {[%emt 0:05:52]} 17. Na4 {[%emt 0:00:51]} Qh5 {[%emt 0:01:07]} 18. Nc5 {[%emt 0:00:51] Wehrt Ne6 ab} b5 {[%emt 0:00:53]} 19. Qc2 {[%emt 0:00:09]} Bxc5 $1 {[%emt 0:00:40]} 20. Bxf6 {[%emt 0:02:56]} (20. Qxc5 {vereinfacht} Qxc5 21. bxc5 Nfd5 22. f3) 20... gxf6 {[%emt 0:00:21]} 21. bxc5 {[%emt 0:00:03] [#]} (21. Qxc5 $11 Qxc5 22. bxc5) 21... Ne6 $1 $17 {[%emt 0:00:28][%cal Bc7e6,Be6d4,Bd4e2][%mdl 32]} 22. d3 {[%emt 0:04:35]} (22. g4 $142 Qe5 (22... Qxc5 23. Qxc5 Nxc5 24. h4 $11) 23. Nf5 Bxf5 (23... Qxc5 24. Qxe4 Nd4 25. Ne7+ Kg7 26. Nxg6 $11) (23... Nxc5 24. Rc1 $15) 24. gxf5) 22... Nd4 {[%emt 0:01:17] Schwarz steht aktiver.} (22... Qxc5 23. dxe4 Qxc2 (23... Qxa3 24. Qxc6 Qc5 25. Qa6 $16) 24. Nxc2 $11) 23. Qb2 {[%emt 0:00:01]} (23. g4 $17 {war erzwungen.} Qe5 24. Qa2) 23... Nxe2+ $19 {[%emt 0:01:53]} (23... Qxc5 24. dxe4 $11) (23... Qxe2 24. Rd2 Qh5 25. g4 $15) 24. Kh1 {[%emt 0:00:01]} exd3 {[%emt 0:00:01]} (24... Rxd3 25. g4 (25. Qxf6 Qxc5 26. Rde1 Nc3 $16) 25... Qxc5 26. Qxe2 $16) 25. Qxf6 {[%emt 0:00:04]} Qxc5 {[%emt 0:00:01][%cal Od3d2]} 26. Ng4 {[%emt 0:00:46][%cal Od1d3] [#]} Qd4 {[%emt 0:00:01]} ({Und nicht} 26... Qxa3 27. Nh6+ (27. Qxc6 $2 {ist das falsche Schlagen.} Rac8 $19) (27. Bxc6 $2 Qc3 $17) 27... Kf8 28. Qh8+ (28. Qxc6 $2 Rac8 $19) (28. Bxc6 $2 Qc3 $19) 28... Ke7 29. Qe5+ Kf8 30. Qh8+ (30. Bxc6 $2 Qc3 $19) 30... Ke7 31. Qe5+ Kf8 32. Qh8+ $11 (32. Bxc6 $2 Qc3 $19)) 27. Qg5 {[%emt 0:00:20]} (27. f4 {war nötig.} Rd6 (27... Qxf6 28. Nxf6+ Kg7 29. f5 $17) 28. Qe7) 27... Nc3 {[%emt 0:00:00]} 28. Nf6+ {[%emt 0:00:11]} (28. Rd2 $142 Rd6 29. Nh6+ Kf8 30. Ng4) 28... Kh8 {[%emt 0:00:09]} 29. Rd2 {[%emt 0:00:06]} Rd6 {[%emt 0:00:13]} 30. Ng4 {[%emt 0:00:14]} Re8 {[%emt 0:00:01] Lässt Ne5 nicht zu} 31. h4 {[%emt 0:00:10]} f6 {[%emt 0:00:49]} 32. Qf4 {[%emt 0:00:07]} Qxf4 {[%emt 0:00:05]} 33. gxf4 {[%emt 0:00:01]} Re2 {[%emt 0:00:02] Gewichteter Fehlerwert: Weiß=0.55/Schwarz=0.06 (makellos) .  Fehler:       	Weiß=6     	Schwarz=1     Ungenau:       	Weiß=1     	Schwarz=3     OK:         	Weiß=7     	Schwarz=12    Bester:       	Weiß=1     	Schwarz=1     Stark:        	---       	Schwarz=2} 0-1

[Event "American Cup Open Elimination 2024"]
[Site "Saint Louis"]
[Date "2024.03.15"]
[Round "1.4"]
[White "Dominguez Perez, Leinier"]
[Black "Shankland, Sam"]
[Result "0-1"]
[ECO "B80"]
[WhiteElo "2749"]
[BlackElo "2674"]
[Annotator "TA"]
[PlyCount "96"]
[EventDate "2024.03.11"]
[EventType "k.o."]
[EventCountry "USA"]
[SourceTitle "playchess.com"]
[Source "ChessBase"]
[SourceQuality "1"]
[TimeControl "900+10"]

{[%evp 11,96,19,14,22,44,32,35,37,36,36,19,20,19,20,35,5,45,0,88,16,145,135,128,121,232,-31,-39,-86,-90,-109,-125,-116,-122,-101,-127,-114,-111,-108,-113,-118,-101,-89,-85,-92,-92,-88,-95,-113,-109,-110,-116,-135,-135,-131,-131,-136,-107,-182,-168,-247,-258,-466,-467,-458,-441,-577,-576,-1322,-1265,-929,-606,-599,-580,-4698,-2081,-5031,-4468,-5093,-4606,-29975,-29977,-29978,-29978,-29979,-29980,-29978,-29978]} 1. e4 {[%emt 0:00:02]} c5 {[%emt 0:00:00]} 2. Nf3 {[%emt 0:00:02]} d6 {[%emt 0:00:02]} 3. d4 {[%emt 0:00:01]} cxd4 {[%emt 0:00:01]} 4. Nxd4 {[%emt 0:00:02]} Nf6 {[%emt 0:00:01]} 5. Nc3 {[%emt 0:00:02]} a6 {[%emt 0:00:01]} 6. Be3 {[%emt 0:00:02]} e6 {[%emt 0:00:02]} 7. a3 {[%emt 0:00:16]} b5 {[%emt 0:00:01]} 8. g4 {[%emt 0:00:05]} Bb7 {[%emt 0:00:02]} 9. Bg2 {[%emt 0:00:13] Weiß steht etwas besser.} Nfd7 {[%emt 0:00:30]} 10. g5 {[%emt 0:00:31]} Nc6 {[%emt 0:00:17]} 11. f4 {[%emt 0:00:02]} h6 {[%emt 0:00:38] [#]} 12. Nxe6 $1 {[%emt 0:07:29]} fxe6 {[%emt 0:00:04]} 13. Qh5+ {[%emt 0:00:02]} Ke7 {[%emt 0:00:01][%cal Og7g6]} 14. O-O-O {[%emt 0:00:03][%cal Oe4e5] Schwarz muss nun e5! beachten.} g6 {[%emt 0:02:00]} 15. Qg4 {[%emt 0:00:52]} (15. Qxg6 Qe8 16. Qxe8+ Rxe8 $17) ({Günstiger ist} 15. Qh3 $1 $16) 15... hxg5 {[%emt 0:00:40] [#]} (15... Kf7 $11) 16. e5 $1 $16 {[%emt 0:00:04]} (16. Bh3 Qe8 (16... Rxh3 17. Qxh3 Bg7 18. f5 $17) 17. Qxg5+ (17. Qxe6+ $2 Kd8 $19) 17... Nf6 $11) 16... Rh4 {[%emt 0:02:33]} 17. Qg3 {[%emt 0:01:05]} Ke8 {[%emt 0:01:18]} (17... Kf7 $16) 18. Ne4 $2 {[%emt 0:00:43]} (18. Qxg5 $2 Qxg5 (18... dxe5 $2 19. Qxg6+ Ke7 20. f5 $18) 19. fxg5 Ndxe5 $19 (19... d5 $2 20. Bf2 $19)) (18. fxg5 Rc4) (18. exd6 $18 b4 19. axb4 (19. fxg5 bxc3 20. Qxh4 Qa5 $16)) 18... Ncxe5 $1 $15 {[%emt 0:00:14] Zielt auf ...gxf4 ab.} (18... dxe5 $2 19. fxg5 (19. Qxg5 $2 Qxg5 20. fxg5 Nd8 $19) 19... Rxe4 20. Bxe4 $18) (18... d5 $2 19. Nxg5 Rh6 20. Nxe6 $18) 19. fxe5 {[%emt 0:01:52]} (19. Nxg5 $15 {verdient Beachtung.} Bxg2 (19... Rg4 20. Bxb7 Rxg3 21. hxg3 $11) 20. fxe5 Nxe5 (20... Bxh1 21. Nxe6 Nxe5 22. Nxd8 $18) 21. Qxh4 (21. Qxg2 Rg4 $17) 21... Bxh1 22. Rxh1) 19... Bxe4 $17 {[%emt 0:00:19]} 20. Bxg5 {[%emt 0:00:04] [#]} Qxg5+ {[%emt 0:00:34][%mdl 512]} 21. Qxg5 {[%emt 0:00:02]} Bh6 {[%emt 0:00:00] Manche mögen's heiß} 22. Qxh6 {[%emt 0:00:02]} Rxh6 {[%emt 0:00:01]} 23. Bxe4 {[%emt 0:00:02]} d5 {[%emt 0:00:01]} 24. Bd3 {[%emt 0:01:10]} Nxe5 {[%emt 0:00:38]} 25. Rhe1 {[%emt 0:00:02]} Rh5 {[%emt 0:01:00][%cal Oe8e7]} 26. Be2 {[%emt 0:00:38]} Rf5 {[%emt 0:01:00]} 27. Bd3 {[%emt 0:00:00]} Nxd3+ {[%emt 0:01:06]} 28. Rxd3 {[%emt 0:00:01][%mdl 4096] Endspiel. KRR-KRR} Ke7 {[%emt 0:00:52]} 29. Rde3 {[%emt 0:00:08]} Rf6 {[%emt 0:00:01]} 30. R1e2 {[%emt 0:03:15]} Rh8 {[%emt 0:00:22]} 31. b3 {[%emt 0:00:31]} Kd6 {[%emt 0:01:32]} 32. Rg3 {[%emt 0:00:02]} a5 {[%emt 0:00:43]} 33. Reg2 {[%emt 0:00:07]} Rh6 {[%emt 0:00:06]} 34. Rg5 {[%emt 0:00:23]} (34. Rg4 $17) 34... e5 {[%emt 0:00:24]} 35. h4 {[%emt 0:00:01]} (35. Kb2 $142) 35... Rxh4 $19 {[%emt 0:00:43]} 36. Rxg6 $2 {[%emt 0:00:01]} (36. Kb2 {ist eine bessere Verteidigung.}) 36... Rxg6 {[%emt 0:00:01]} 37. Rxg6+ {[%emt 0:00:01] KR-KR} Kc5 {[%emt 0:00:00]} 38. Ra6 {[%emt 0:00:42]} Kd4 {[%emt 0:01:01] ...e4 wäre nun fies.} 39. Rxa5 {[%emt 0:00:29]} Kc3 {[%emt 0:00:05][%cal Rh4h1]} 40. Kd1 {[%emt 0:00:02]} Rh1+ {[%emt 0:00:16]} 41. Ke2 {[%emt 0:00:01]} Rh2+ {[%emt 0:00:14]} (41... Kxc2 42. Rxb5 Rh2+ 43. Ke1 $15) 42. Kd1 {[%emt 0:00:39]} Rd2+ {[%emt 0:00:29]} (42... Rxc2 43. Rxb5 Rd2+ 44. Ke1 $19) 43. Ke1 {[%emt 0:00:01]} Rxc2 {[%emt 0:00:05] Droht stark ...e4.} (43... Kxc2 44. Rxb5 Rd4 45. Rc5+ Kxb3 46. Rb5+ Kc4 (46... Kxa3 $2 47. Ke2 $19) 47. Rb1 $19) 44. Rxb5 {[%emt 0:00:05] [#]} Kd4 $1 {[%emt 0:00:04] Und ...e4 würde nun gewinnen.} 45. a4 {[%emt 0:00:24]} e4 {[%emt 0:00:31] Schwarz setzt Matt.} 46. a5 {[%emt 0:00:09]} e3 {[%emt 0:00:23]} 47. a6 {[%emt 0:00:13]} Ra2 {[%emt 0:00:12]} 48. b4 {[%emt 0:00:11]} Rxa6 {[%emt 0:00:09] Kein schönes Erlebnis für Weiß.   Gewichteter Fehlerwert: Weiß=0.65/Schwarz=0.18 (sehr präzise) .  Gewinn verpasst:   	Weiß=1     	---        Fehler:       	Weiß=5     	Schwarz=3     Ungenau:       	Weiß=3     	---        OK:         	Weiß=9     	Schwarz=13    Bester:       	Weiß=4     	Schwarz=9     Stark:        	Weiß=1     	Schwarz=1     Brilliant:      	---       	Schwarz=1} 0-1

[Event "American Cup Open Elimination 2024"]
[Site "Saint Louis"]
[Date "2024.03.15"]
[Round "1.4"]
[White "Sevian, Samuel"]
[Black "Oparin, Grigoriy"]
[Result "1-0"]
[ECO "E15"]
[WhiteElo "2697"]
[BlackElo "2671"]
[Annotator "TA"]
[PlyCount "113"]
[EventDate "2024.03.11"]
[EventType "k.o."]
[EventCountry "USA"]
[SourceTitle "playchess.com"]
[Source "ChessBase"]
[SourceQuality "1"]
[TimeControl "900+10"]

{[%evp 17,113,13,4,6,4,0,0,13,17,0,0,-2,7,-14,30,31,29,48,47,51,81,87,83,67,97,67,72,61,101,108,152,128,136,91,195,194,195,175,182,189,503,220,228,174,249,256,309,301,329,262,251,263,272,266,271,269,271,270,283,257,379,353,378,283,567,0,374,262,355,246,235,250,351,343,334,335,361,361,354,337,386,386,376,386,462,430,926,1031,961,724,1805,689,29973,29973,29973,29974,29993,29994]} 1. d4 {[%emt 0:00:01]} Nf6 {[%emt 0:00:06]} 2. Nf3 {[%emt 0:00:01]} e6 {[%emt 0:00:21]} 3. c4 {[%emt 0:00:05]} b6 {[%emt 0:00:04]} 4. g3 {[%emt 0:00:02]} Ba6 {[%emt 0:00:05]} 5. b3 {[%emt 0:00:10]} Bb4+ {[%emt 0:00:08]} 6. Bd2 {[%emt 0:00:01]} Be7 {[%emt 0:00:03]} 7. Bg2 {[%emt 0:00:04]} d5 {[%emt 0:00:02]} 8. Ne5 {[%emt 0:00:52]} c6 {[%emt 0:00:22]} 9. O-O {[%emt 0:00:11]} Nfd7 {[%emt 0:00:32]} 10. Nxd7 {[%emt 0:02:30]} Nxd7 {[%emt 0:00:06]} 11. Bc3 {[%emt 0:00:07]} dxc4 {[%emt 0:02:19]} 12. Bxc6 {[%emt 0:00:10] Die Stellung ist ausgeglichen.} Rc8 {[%emt 0:00:23]} 13. Bg2 {[%emt 0:01:47]} O-O {[%emt 0:00:15]} 14. b4 {[%emt 0:00:34]} Rc7 {[%emt 0:02:27]} 15. Nd2 {[%emt 0:01:21]} Nf6 {[%emt 0:00:02]} 16. e4 {[%emt 0:00:23] Wehrt Nd5 ab} Bb7 {[%emt 0:00:18]} 17. b5 {[%emt 0:00:31]} Qd7 {[%emt 0:01:40]} 18. a4 {[%emt 0:00:10]} a6 {[%emt 0:00:16] [#]} 19. bxa6 $1 {[%emt 0:00:27]} Bxa6 {[%emt 0:00:01]} 20. Qc2 {[%emt 0:00:09]} Rb8 {[%emt 0:00:35]} 21. Rfb1 {[%emt 0:00:19]} Rcc8 {[%emt 0:01:44]} 22. Nf1 {[%emt 0:00:23]} Ne8 {[%emt 0:00:55]} 23. Ne3 {[%emt 0:00:16]} Nd6 {[%emt 0:00:03]} 24. d5 {[%emt 0:00:25]} Ne8 {[%emt 0:00:18]} 25. Ng4 {[%emt 0:01:06] Und jetzt Ne5 wäre schön. Weiß hat aktiveres Spiel.} Bd6 {[%emt 0:00:37]} ({Aber nicht} 25... exd5 $2 26. Ne5 Qd6 27. exd5 $18) (25... Bc5 $16) 26. Ne5 $18 {[%emt 0:00:22]} Bxe5 {[%emt 0:00:02]} 27. Bxe5 {[%emt 0:00:01]} Rb7 {[%emt 0:00:02] Schwarz hat schwache schwarze Felder} 28. Qc3 {[%emt 0:00:20]} b5 $2 {[%emt 0:00:25]} (28... Rd8 29. h4 h5) 29. axb5 {[%emt 0:00:06]} (29. Qa5 $142) 29... Rxb5 {[%emt 0:00:02]} 30. Rxb5 {[%emt 0:00:27]} Bxb5 {[%emt 0:00:01]} (30... Qxb5 {war nötig.} 31. dxe6 fxe6) 31. Bh3 {[%emt 0:00:07]} Qe7 {[%emt 0:01:37]} 32. dxe6 {[%emt 0:00:09]} fxe6 {[%emt 0:00:02] [#]} 33. Ra7 $3 {[%emt 0:01:26][%mdl 512]} Qxa7 {[%emt 0:00:16]} 34. Bxe6+ {[%emt 0:00:01]} Kh8 {[%emt 0:00:07] ...Bd7 ist eine echte Drohung.} 35. Bxc8 {[%emt 0:00:03] Ein starkes Läuferpaar.} Qe7 {[%emt 0:00:42] Wehrt Qb4 ab} 36. Qd4 {[%emt 0:00:27] Lässt Nd6 nicht zu} Nf6 {[%emt 0:00:30]} 37. Bf5 {[%emt 0:00:03]} h5 {[%emt 0:01:12]} 38. h3 {[%emt 0:00:14]} h4 {[%emt 0:00:28]} (38... Be8 $142 39. Bxf6 gxf6 40. Qxc4 Bf7) 39. g4 {[%emt 0:00:39]} ({Viel schwächer ist} 39. gxh4 Be8 40. Bxf6 Qxf6 41. Qxc4 Qxh4 $18) 39... Be8 {[%emt 0:01:04]} 40. Bd6 {[%emt 0:00:21]} Qb7 {[%emt 0:00:09]} (40... Qd8 41. Qc5 Bf7) 41. Be5 {[%emt 0:00:53]} Qe7 {[%emt 0:00:07]} 42. Kh2 {[%emt 0:00:42]} Bf7 {[%emt 0:00:44]} 43. Bf4 {[%emt 0:00:11]} Nh7 {[%emt 0:00:25]} 44. Bd2 {[%emt 0:00:42]} Qc7+ {[%emt 0:00:20]} (44... Nf8 $142 45. Bc3 Bg8) 45. Kg2 {[%emt 0:00:08]} Nf8 {[%emt 0:00:03]} 46. Bc3 {[%emt 0:01:04]} Ne6 {[%emt 0:00:01]} 47. Bxe6 {[%emt 0:00:02]} Bxe6 {[%emt 0:00:02][%mdl 4096] Endspiel. KQB-KQB} 48. Qe3 {[%emt 0:00:01] Weiss will mit Qh6+ Matt setzen.} Kg8 {[%emt 0:00:15]} 49. Qg5 {[%emt 0:00:04]} Qd7 {[%emt 0:00:29]} 50. f3 {[%emt 0:00:12]} ({Weniger gut wäre} 50. Qxh4 Qd3 51. Qe7 Qxe4+ 52. Kg1 Qb1+ 53. Kh2 Qb8+ 54. Kg2 Bd5+ 55. f3 Qf8 56. Qxf8+ Kxf8 $16) 50... Qa7 {[%emt 0:00:26]} 51. Qxh4 {[%emt 0:00:06]} Qe3 {[%emt 0:00:02]} (51... Qa2+ $142 52. Qf2 Qb1) 52. Qd8+ {[%emt 0:00:17]} Kh7 {[%emt 0:00:07]} 53. Qd4 {[%emt 0:00:18]} Qh6 {[%emt 0:00:11]} 54. Kg3 {[%emt 0:00:08]} (54. h4 $142) 54... Bf7 {[%emt 0:00:02]} 55. Qe5 {[%emt 0:00:04] Pariert Be8. Weiß setzt Matt.} Qg6 {[%emt 0:00:04]} 56. h4 {[%emt 0:00:05]} Qh6 {[%emt 0:00:03]} 57. g5 {[%emt 0:00:04] Gewichteter Fehlerwert: Weiß=0.42/Schwarz=0.52.  Fehler:       	Weiß=1     	Schwarz=7     Ungenau:       	Weiß=4     	Schwarz=6     OK:         	Weiß=20    	Schwarz=12    Bester:       	Weiß=3     	Schwarz=5     Stark:        	Weiß=1     	---} 1-0

[Event "American Cup Open Elimination 2024"]
[Site "Saint Louis"]
[Date "2024.03.16"]
[Round "2.1"]
[White "Caruana, Fabiano"]
[Black "Dominguez Perez, Leinier"]
[Result "0-1"]
[ECO "D35"]
[WhiteElo "2804"]
[BlackElo "2749"]
[Annotator "TA"]
[PlyCount "92"]
[EventDate "2024.03.11"]
[EventType "k.o."]
[EventCountry "USA"]
[SourceTitle "playchess.com"]
[Source "ChessBase"]
[SourceQuality "1"]
[TimeControl "1500+10"]

{[%evp 11,92,8,20,0,0,0,12,0,5,0,0,0,0,2,6,0,0,0,-18,-23,-23,-23,-9,-12,-22,-22,-18,-34,-35,-59,0,-23,-19,-175,-180,-312,-295,-233,-142,-164,-181,-270,-321,-489,-475,-630,-602,-600,-429,-390,-305,-314,-302,-513,-521,-648,-604,-824,-860,-860,-800,-683,-466,-997,-601,-846,0,-756,-733,-912,-906,-2847,-2724,-29969,-29967,-29976,-29972,-29971,-29973,-29973,-29974,-29979,-29980]} 1. d4 {[%emt 0:10:03]} Nf6 {[%emt 0:10:05]} 2. c4 {[%emt 0:00:02]} e6 {[%emt 0:00:02][%cal Be7e6,Be6d5][%mdl 32]} 3. Nc3 {[%emt 0:00:02]} d5 {[%emt 0:00:02]} 4. cxd5 {[%emt 0:00:04]} exd5 {[%emt 0:00:02]} 5. Bg5 {[%emt 0:00:04]} c6 {[%emt 0:00:01]} 6. e3 {[%emt 0:00:03]} Bf5 {[%emt 0:00:02]} 7. Nge2 {[%emt 0:00:04]} h6 {[%emt 0:00:03]} 8. Bf4 {[%emt 0:00:03]} Nbd7 {[%emt 0:00:02]} 9. Ng3 {[%emt 0:00:20] Die Stellung ist ausgeglichen.} Bh7 {[%emt 0:00:01]} 10. h4 {[%emt 0:01:02]} Bb4 {[%emt 0:00:03]} 11. Bd3 {[%emt 0:00:28]} Bxd3 {[%emt 0:00:02]} 12. Qxd3 {[%emt 0:00:02]} O-O {[%emt 0:00:03]} 13. f3 {[%emt 0:00:26]} Re8 {[%emt 0:01:05]} 14. a3 {[%emt 0:00:15]} Bf8 {[%emt 0:00:44]} 15. Kf2 {[%emt 0:01:48]} g6 {[%emt 0:01:56]} 16. Nge2 {[%emt 0:00:33]} Bg7 {[%emt 0:01:30]} 17. g4 {[%emt 0:00:56]} h5 {[%emt 0:00:03]} 18. Rag1 {[%emt 0:03:09]} hxg4 {[%emt 0:00:36]} 19. fxg4 {[%emt 0:00:02]} c5 {[%emt 0:01:45]} 20. h5 {[%emt 0:02:26]} cxd4 {[%emt 0:00:01]} 21. exd4 {[%emt 0:00:56]} Ne4+ {[%emt 0:00:23]} 22. Nxe4 $2 {[%emt 0:00:05]} (22. Kg2 $11 {und Weiss muss sich keine Sorgen machen.} Ndf6 23. h6) 22... Rxe4 $19 {[%emt 0:00:02]} (22... dxe4 23. Qb3 $11) 23. Qf3 {[%emt 0:00:54]} (23. Rg3 {war nötig.}) 23... Qb6 {[%emt 0:02:45]} (23... Bxd4+ 24. Nxd4 Qb6 25. Kg3 (25. Be3 $2 Ne5 $19) 25... Rxd4 (25... Qxd4 26. hxg6 fxg6 27. Rd1 $11) 26. hxg6 fxg6 27. Rd1 $19) 24. Kg3 {[%emt 0:00:01]} Qxb2 {[%emt 0:00:10]} (24... Bxd4 25. Nxd4 Rxd4 (25... Qxd4 26. Rd1 $15) 26. hxg6 fxg6 27. Rd1 $17) 25. Rg2 {[%emt 0:00:23]} Rc8 {[%emt 0:00:19]} (25... Bxd4 26. Nxd4 Qxd4 27. Rd2 $14) 26. h6 {[%emt 0:01:02]} (26. Rf1 $142 Qb6 (26... Bxd4 27. Bc1 $15) 27. Bd2) 26... Bxd4 {[%emt 0:00:58]} 27. Nxd4 {[%emt 0:00:14]} (27. h7+ $142 Kh8 28. Rd1) 27... Qxd4 {[%emt 0:00:02]} 28. Rd1 {[%emt 0:00:20]} Qf6 {[%emt 0:00:18]} 29. g5 {[%emt 0:01:08]} Qf5 {[%emt 0:01:32][%cal Oe4f4] [#] Und ...Rxf4! würde nun gewinnen.} 30. Rc1 {[%emt 0:01:12]} Rce8 {[%emt 0:02:07] Droht ...Ne5 und aus.} 31. Bd2 {[%emt 0:00:52]} Qe6 {[%emt 0:00:49]} ({Finger weg von} 31... Qe5+ 32. Bf4 Qe6 33. Kh2 $19) 32. Rh1 $2 {[%emt 0:00:58]} (32. Rf1 {ist eine bessere Verteidigung.}) 32... Kh7 {[%emt 0:00:46] Und jetzt ...Ne5 wäre schön.} 33. Rh4 {[%emt 0:00:05]} Qd6+ {[%emt 0:00:42]} 34. Bf4 {[%emt 0:00:12]} Ne5 {[%emt 0:00:25]} 35. Qb3 {[%emt 0:00:05]} Re7 {[%emt 0:00:40]} 36. Rf2 {[%emt 0:00:01]} Qc6 {[%emt 0:00:24]} 37. Rh1 {[%emt 0:00:21]} (37. Bd2 $142) 37... Nc4 {[%emt 0:00:14] [#] Zielt auf ...Ne3 ab.} 38. Rf3 {[%emt 0:00:14]} Ne5 {[%emt 0:00:27] ...Qe6 wäre nun fies.} 39. Rf2 $1 {[%emt 0:00:19]} Qe6 {[%emt 0:00:01]} 40. Rh4 {[%emt 0:00:02] Verhindert Qg4+.} Nc4 {[%emt 0:00:11]} 41. Rf3 {[%emt 0:00:25]} Nd6 {[%emt 0:00:15]} 42. Bxd6 {[%emt 0:00:11]} Qxd6+ {[%emt 0:00:01] Schwarz setzt Matt.} 43. Rhf4 {[%emt 0:00:04]} Rxf4 {[%emt 0:00:26]} 44. Rxf4 {[%emt 0:00:01]} Re4 {[%emt 0:00:02]} 45. Qf3 {[%emt 0:00:01]} Qe5 {[%emt 0:00:13]} 46. Kg4 {[%emt 0:00:02]} Qf5+ {[%emt 0:00:02] Gewichteter Fehlerwert: Weiß=0.70/Schwarz=0.21 (präzise) .  Fehler:       	Weiß=5     	---        Ungenau:       	Weiß=3     	Schwarz=2     OK:         	Weiß=8     	Schwarz=16    Bester:       	---       	Schwarz=2} 0-1